[Event "*** Qualifier 3: Titled Tuesday 3|2 Blitz"]
[Site "Chess.com"]
[Date "2017.04.18"]
[Round "3"]
[White "kleinebeer98"]
[Black "maciek_92"]
[Result "1-0"]
[WhiteElo "2465"]
[BlackElo "2522"]
[TimeControl "180+2"]
[EndTime "13:39:21 PDT"]
[Termination "kleinebeer98 won by resignation"]

1. e4 {[%clk 0:03:02]} 1... c5 {[%clk 0:03:00.6]} 2. Nf3 {[%clk 0:03:03.1]} 2...
Nc6 {[%clk 0:03:02.2]} 3. d4 {[%clk 0:03:03.7]} 3... cxd4 {[%clk 0:03:04.1]} 4.
Nxd4 {[%clk 0:03:05.6]} 4... e6 {[%clk 0:03:05.7]} 5. Nc3 {[%clk 0:03:05.3]}
5... a6 {[%clk 0:03:07.1]} 6. Be3 {[%clk 0:03:02.7]} 6... Nf6 {[%clk 0:03:07.6]}
7. Bd3 {[%clk 0:03:03.1]} 7... Qc7 {[%clk 0:03:08]} 8. O-O {[%clk 0:03:03.8]}
8... Be7 {[%clk 0:03:05.6]} 9. Kh1 {[%clk 0:03:03.6]} 9... h5 {[%clk 0:03:03.4]}
10. f4 {[%clk 0:02:59.7]} 10... Ng4 {[%clk 0:03:02]} 11. Bg1 {[%clk 0:03:00.2]}
11... b5 {[%clk 0:03:01.1]} 12. h3 {[%clk 0:02:55.5]} 12... Bb7 {[%clk 0:03:01]}
13. Qf3 {[%clk 0:02:50.2]} 13... f5 {[%clk 0:02:40.5]} 14. Rfe1 {[%clk
0:02:43.6]} 14... g6 {[%clk 0:02:41]} 15. Rad1 {[%clk 0:02:29.7]} 15... Kf7
{[%clk 0:02:21.6]} 16. Qf1 {[%clk 0:02:17.3]} 16... Bf6 {[%clk 0:02:14.5]} 17.
Bxb5 {[%clk 0:02:05.8]} 17... fxe4 {[%clk 0:01:17.5]} 18. Nxc6 {[%clk
0:01:57.8]} 18... axb5 {[%clk 0:01:05.9]} 19. Ne5+ {[%clk 0:01:56.3]} 19... Bxe5
{[%clk 0:01:01]} 20. fxe5+ {[%clk 0:01:58.2]} 20... Kg8 {[%clk 0:00:58.8]} 21.
Nxb5 {[%clk 0:01:53.1]} 21... Qxe5 {[%clk 0:01:00.1]} 22. Rxd7 {[%clk 0:01:54]}
22... Rf8 {[%clk 0:01:01.1]} 23. Qxf8+ {[%clk 0:01:25.3]} 23... Kxf8 {[%clk
0:01:03]} 24. Rf1+ {[%clk 0:01:21]} 24... Kg8 {[%clk 0:01:01.6]} 25. Rxb7 {[%clk
0:01:04.7]} 25... e3 {[%clk 0:01:02.2]} 26. Rd1 {[%clk 0:00:39]} 26... Qf6
{[%clk 0:00:35.1]} 27. Rdd7 {[%clk 0:00:12]} 27... e2 {[%clk 0:00:32.1]} 28.
Rb8+ {[%clk 0:00:08.5]} 28... Qf8 {[%clk 0:00:32]} 29. Rxf8+ {[%clk 0:00:08.5]}
29... Kxf8 {[%clk 0:00:33]} 30. Bc5+ {[%clk 0:00:10.4]} 30... Ke8 {[%clk
0:00:29.7]} 31. Re7+ {[%clk 0:00:11.1]} 31... Kd8 {[%clk 0:00:31.1]} 32. Rxe6
{[%clk 0:00:11.1]} 32... Re8 {[%clk 0:00:23.9]} 33. Rxe8+ {[%clk 0:00:06.5]}
33... Kxe8 {[%clk 0:00:25.8]} 34. Bb4 {[%clk 0:00:08.4]} 34... Ne3 {[%clk
0:00:27.7]} 35. Nd4 {[%clk 0:00:08.3]} 1-0

[Event "*** Qualifier 3: Titled Tuesday 3|2 Blitz"]
[Site "Chess.com"]
[Date "2017.04.18"]
[Round "3"]
[White "Roachelley"]
[Black "SabinaFoisor"]
[Result "0-1"]
[WhiteElo "2129"]
[BlackElo "2200"]
[TimeControl "180+2"]
[EndTime "13:39:22 PDT"]
[Termination "SabinaFoisor won by resignation"]

1. e4 {[%clk 0:03:00.6]} 1... e5 {[%clk 0:03:00.2]} 2. Nf3 {[%clk 0:03:00.2]}
2... Nc6 {[%clk 0:03:00.6]} 3. Bb5 {[%clk 0:03:00.1]} 3... a6 {[%clk 0:03:01.4]}
4. Ba4 {[%clk 0:03:01.2]} 4... Nf6 {[%clk 0:03:01.6]} 5. O-O {[%clk 0:03:01.8]}
5... Be7 {[%clk 0:03:00.6]} 6. c3 {[%clk 0:02:58.6]} 6... d6 {[%clk 0:02:50.3]}
7. d4 {[%clk 0:02:48.4]} 7... b5 {[%clk 0:02:44.5]} 8. Bc2 {[%clk 0:02:47.4]}
8... Bg4 {[%clk 0:02:44.1]} 9. d5 {[%clk 0:02:43.1]} 9... Nb8 {[%clk 0:02:41.7]}
10. h3 {[%clk 0:02:43.9]} 10... Bh5 {[%clk 0:02:38.3]} 11. Be3 {[%clk
0:02:42.3]} 11... c6 {[%clk 0:02:35.5]} 12. dxc6 {[%clk 0:02:41.4]} 12... Nxc6
{[%clk 0:02:35.5]} 13. Nbd2 {[%clk 0:02:41.8]} 13... O-O {[%clk 0:02:35.2]} 14.
Re1 {[%clk 0:02:42.6]} 14... Rc8 {[%clk 0:02:29]} 15. Nf1 {[%clk 0:02:39.7]}
15... d5 {[%clk 0:02:23.9]} 16. exd5 {[%clk 0:02:28.1]} 16... Qxd5 {[%clk
0:02:19.4]} 17. Qxd5 {[%clk 0:02:18.1]} 17... Nxd5 {[%clk 0:02:21.3]} 18. g4
{[%clk 0:02:11.4]} 18... Bg6 {[%clk 0:02:20.4]} 19. Bxg6 {[%clk 0:02:11.8]}
19... hxg6 {[%clk 0:02:17.3]} 20. Ng3 {[%clk 0:02:09.9]} 20... f5 {[%clk
0:02:04.8]} 21. Bg5 {[%clk 0:01:31]} 21... e4 {[%clk 0:01:49.4]} 22. Bxe7 {[%clk
0:01:29.1]} 22... Ncxe7 {[%clk 0:01:48.4]} 23. Ne5 {[%clk 0:01:21.3]} 23... Nf4
{[%clk 0:01:40.2]} 24. Kh2 {[%clk 0:01:18]} 24... Nc6 {[%clk 0:01:28.8]} 25.
Nxc6 {[%clk 0:01:14.2]} 25... Rxc6 {[%clk 0:01:28.6]} 26. Rad1 {[%clk
0:01:14.5]} 26... Nd3 {[%clk 0:01:15.7]} 27. Re2 {[%clk 0:01:15.2]} 27... Ne5
{[%clk 0:01:06.1]} 28. Rd5 {[%clk 0:01:10.6]} 28... Nf3+ {[%clk 0:01:05.7]} 29.
Kg2 {[%clk 0:01:11.2]} 29... b4 {[%clk 0:00:53.3]} 30. cxb4 {[%clk 0:00:30.3]}
30... Rc1 {[%clk 0:00:53.9]} 31. Nf1 {[%clk 0:00:31]} 31... Rfc8 {[%clk
0:00:48.6]} 32. Red2 {[%clk 0:00:19.1]} 32... Nxd2 {[%clk 0:00:43.1]} 33. Nxd2
{[%clk 0:00:15]} 33... R1c2 {[%clk 0:00:38.1]} 34. b3 {[%clk 0:00:14.7]} 34...
Rxa2 {[%clk 0:00:38]} 35. Nc4 {[%clk 0:00:14.8]} 35... Rf8 {[%clk 0:00:32.1]}
36. g5 {[%clk 0:00:09.7]} 36... f4 {[%clk 0:00:31.1]} 37. Re5 {[%clk 0:00:09.4]}
37... e3 {[%clk 0:00:31.3]} 0-1

[Event "*** Qualifier 3: Titled Tuesday 3|2 Blitz"]
[Site "Chess.com"]
[Date "2017.04.18"]
[Round "3"]
[White "Bugcrusher"]
[Black "WanderingPuppet"]
[Result "1-0"]
[WhiteElo "2509"]
[BlackElo "2307"]
[TimeControl "180+2"]
[EndTime "13:39:32 PDT"]
[Termination "Bugcrusher won by checkmate"]

1. d4 {[%clk 0:03:02]} 1... Nc6 {[%clk 0:02:51.4]} 2. g3 {[%clk 0:02:53.6]} 2...
e5 {[%clk 0:02:51.1]} 3. d5 {[%clk 0:02:50.6]} 3... Nce7 {[%clk 0:02:52]} 4. Nc3
{[%clk 0:02:36.2]} 4... Nf6 {[%clk 0:02:49]} 5. e4 {[%clk 0:02:31.3]} 5... Ng6
{[%clk 0:02:46.8]} 6. Bg2 {[%clk 0:02:31.9]} 6... Bc5 {[%clk 0:02:42.8]} 7. h4
{[%clk 0:02:24]} 7... h5 {[%clk 0:02:38]} 8. Qe2 {[%clk 0:02:21.3]} 8... d6
{[%clk 0:02:37.6]} 9. Be3 {[%clk 0:02:21.8]} 9... Bxe3 {[%clk 0:02:36.3]} 10.
Qxe3 {[%clk 0:02:23.7]} 10... O-O {[%clk 0:02:29.3]} 11. Nf3 {[%clk 0:02:22.3]}
11... c6 {[%clk 0:02:27.5]} 12. O-O-O {[%clk 0:02:20.6]} 12... c5 {[%clk
0:02:22.4]} 13. Ng5 {[%clk 0:02:17.5]} 13... b5 {[%clk 0:02:11.8]} 14. f4 {[%clk
0:02:12.8]} 14... b4 {[%clk 0:01:56.8]} 15. Ne2 {[%clk 0:02:05]} 15... Bg4
{[%clk 0:01:52.1]} 16. f5 {[%clk 0:02:03.5]} 16... Ne7 {[%clk 0:01:48.3]} 17.
Bf3 {[%clk 0:02:01.6]} 17... Qa5 {[%clk 0:01:34]} 18. Kb1 {[%clk 0:01:59.9]}
18... c4 {[%clk 0:01:32.2]} 19. Bxg4 {[%clk 0:01:57.6]} 19... Nxg4 {[%clk
0:01:32]} 20. Qf3 {[%clk 0:01:57.6]} 20... c3 {[%clk 0:01:24.1]} 21. f6 {[%clk
0:01:51]} 21... Nxf6 {[%clk 0:01:16.7]} 22. g4 {[%clk 0:01:44.7]} 22... hxg4
{[%clk 0:01:06.4]} 23. Qg3 {[%clk 0:01:38.7]} 23... cxb2 {[%clk 0:01:02.5]} 24.
h5 {[%clk 0:01:36.2]} 24... Qb5 {[%clk 0:00:39.7]} 25. Rh2 {[%clk 0:01:29.3]}
25... Rac8 {[%clk 0:00:35.6]} 26. h6 {[%clk 0:01:27.6]} 26... gxh6 {[%clk
0:00:34.5]} 27. Qh4 {[%clk 0:01:11]} 27... Qc4 {[%clk 0:00:23.1]} 28. Rd2 {[%clk
0:00:49]} 28... Ng6 {[%clk 0:00:14.7]} 29. Qxh6 {[%clk 0:00:45]} 29... g3 {[%clk
0:00:13.1]} 30. Nh7 {[%clk 0:00:36.1]} 30... Ng4 {[%clk 0:00:10.8]} 31. Nf6+
{[%clk 0:00:24.1]} 31... Nxf6 {[%clk 0:00:11.3]} 32. Nxg3 {[%clk 0:00:24.8]}
32... Qc5 {[%clk 0:00:06.5]} 33. Nf5 {[%clk 0:00:17.6]} 33... Qg1+ {[%clk
0:00:07]} 34. Kxb2 {[%clk 0:00:18.9]} 34... Rxc2+ {[%clk 0:00:05.1]} 35. Rxc2
{[%clk 0:00:18]} 35... Qxh2 {[%clk 0:00:05.2]} 36. Qg7# {[%clk 0:00:17.9]} 1-0

[Event "*** Qualifier 3: Titled Tuesday 3|2 Blitz"]
[Site "Chess.com"]
[Date "2017.04.18"]
[Round "3"]
[White "armago"]
[Black "ka1ser64"]
[Result "0-1"]
[WhiteElo "2156"]
[BlackElo "2329"]
[TimeControl "180+2"]
[EndTime "13:39:43 PDT"]
[Termination "ka1ser64 won on time"]

1. d4 {[%clk 0:03:02]} 1... d5 {[%clk 0:03:00.3]} 2. c4 {[%clk 0:03:01.5]} 2...
dxc4 {[%clk 0:03:02.1]} 3. Nf3 {[%clk 0:03:01.4]} 3... Nf6 {[%clk 0:03:03.3]} 4.
e3 {[%clk 0:03:02.4]} 4... e6 {[%clk 0:03:03.8]} 5. Bxc4 {[%clk 0:03:02.6]} 5...
c5 {[%clk 0:03:05.5]} 6. O-O {[%clk 0:03:03.3]} 6... a6 {[%clk 0:03:06.4]} 7.
Qe2 {[%clk 0:03:00.3]} 7... b5 {[%clk 0:03:06.9]} 8. Bd3 {[%clk 0:03:01.1]} 8...
Bb7 {[%clk 0:03:08.2]} 9. a4 {[%clk 0:03:02.1]} 9... b4 {[%clk 0:02:58.5]} 10.
Nbd2 {[%clk 0:03:00.8]} 10... Be7 {[%clk 0:02:48.2]} 11. e4 {[%clk 0:02:54.7]}
11... cxd4 {[%clk 0:02:46.8]} 12. e5 {[%clk 0:02:52.1]} 12... Nfd7 {[%clk
0:02:33.4]} 13. Ne4 {[%clk 0:02:49]} 13... Nc5 {[%clk 0:02:29]} 14. Nxc5 {[%clk
0:02:44.5]} 14... Bxc5 {[%clk 0:02:29.6]} 15. Ng5 {[%clk 0:02:43]} 15... Nd7
{[%clk 0:02:21.9]} 16. f4 {[%clk 0:02:20.9]} 16... Qe7 {[%clk 0:02:09.8]} 17.
Bd2 {[%clk 0:02:15.1]} 17... h6 {[%clk 0:02:08.7]} 18. Qh5 {[%clk 0:01:59.4]}
18... O-O {[%clk 0:00:55]} 19. Bh7+ {[%clk 0:01:37.4]} 19... Kh8 {[%clk
0:00:55.1]} 20. Bd3 {[%clk 0:01:36.8]} 20... f5 {[%clk 0:00:50.5]} 21. Nh3
{[%clk 0:01:20.7]} 21... Qf7 {[%clk 0:00:50.1]} 22. Qe2 {[%clk 0:01:19.6]} 22...
Nb6 {[%clk 0:00:49.4]} 23. Rac1 {[%clk 0:01:12.1]} 23... Rfc8 {[%clk 0:00:46.3]}
24. g4 {[%clk 0:01:05.7]} 24... Qg6 {[%clk 0:00:27.7]} 25. g5 {[%clk 0:01:02.3]}
25... Be4 {[%clk 0:00:24.3]} 26. Kf2 {[%clk 0:00:59.6]} 26... Nd5 {[%clk
0:00:23.8]} 27. Bxa6 {[%clk 0:00:54.6]} 27... d3+ {[%clk 0:00:24.6]} 28. Qe3
{[%clk 0:00:52.4]} 28... Bxe3+ {[%clk 0:00:25.1]} 29. Bxe3 {[%clk 0:00:54.3]}
29... Rxc1 {[%clk 0:00:25.5]} 30. Rxc1 {[%clk 0:00:52.5]} 30... Rxa6 {[%clk
0:00:21.1]} 31. Rc8+ {[%clk 0:00:53.2]} 31... Kh7 {[%clk 0:00:22.4]} 32. b3
{[%clk 0:00:54.2]} 32... Nxe3 {[%clk 0:00:20.1]} 33. Kxe3 {[%clk 0:00:54.6]}
33... Qh5 {[%clk 0:00:21.7]} 0-1

[Event "*** Qualifier 3: Titled Tuesday 3|2 Blitz"]
[Site "Chess.com"]
[Date "2017.04.18"]
[Round "3"]
[White "brauliocuarta"]
[Black "FearlessKing64"]
[Result "1-0"]
[WhiteElo "2143"]
[BlackElo "2163"]
[TimeControl "180+2"]
[EndTime "13:39:46 PDT"]
[Termination "brauliocuarta won on time"]

1. d4 {[%clk 0:03:01.9]} 1... Nf6 {[%clk 0:03:00.2]} 2. c4 {[%clk 0:03:01.6]}
2... g6 {[%clk 0:03:01.4]} 3. Nc3 {[%clk 0:03:02.4]} 3... d5 {[%clk 0:03:02.6]}
4. Nf3 {[%clk 0:03:02.7]} 4... Bg7 {[%clk 0:03:03.4]} 5. h4 {[%clk 0:03:04.2]}
5... Bg4 {[%clk 0:03:00.4]} 6. Bg5 {[%clk 0:02:55.2]} 6... c6 {[%clk 0:02:53.1]}
7. e3 {[%clk 0:02:55.3]} 7... Ne4 {[%clk 0:02:51]} 8. Bd3 {[%clk 0:02:43.6]}
8... Nxg5 {[%clk 0:02:46.9]} 9. hxg5 {[%clk 0:02:45.5]} 9... e5 {[%clk
0:02:23.8]} 10. cxd5 {[%clk 0:02:09.5]} 10... exd4 {[%clk 0:02:21.1]} 11. exd4
{[%clk 0:02:01.1]} 11... cxd5 {[%clk 0:02:17.2]} 12. Qb3 {[%clk 0:01:50.1]}
12... Bxf3 {[%clk 0:02:04.6]} 13. gxf3 {[%clk 0:01:48.3]} 13... O-O {[%clk
0:02:05.7]} 14. Qxb7 {[%clk 0:01:39]} 14... Nd7 {[%clk 0:01:59.2]} 15. Qxd5
{[%clk 0:01:32.2]} 15... Qe7+ {[%clk 0:01:49.1]} 16. Kf1 {[%clk 0:01:30.8]}
16... Nb6 {[%clk 0:01:45.7]} 17. Qc5 {[%clk 0:01:15.6]} 17... Qd7 {[%clk
0:01:33.7]} 18. Rh4 {[%clk 0:00:51]} 18... Rac8 {[%clk 0:01:26.2]} 19. Qb4
{[%clk 0:00:48.7]} 19... Nd5 {[%clk 0:01:15.2]} 20. Qb3 {[%clk 0:00:32.5]} 20...
Ne7 {[%clk 0:00:52.3]} 21. Ne4 {[%clk 0:00:28.2]} 21... Nf5 {[%clk 0:00:40.4]}
22. Nf6+ {[%clk 0:00:19.4]} 22... Bxf6 {[%clk 0:00:40.7]} 23. Bxf5 {[%clk
0:00:20.8]} 23... Qxf5 {[%clk 0:00:38.5]} 24. gxf6 {[%clk 0:00:22.4]} 24... Qxf6
{[%clk 0:00:34]} 25. Rh3 {[%clk 0:00:23.5]} 25... Qxd4 {[%clk 0:00:30.6]} 26.
Kg2 {[%clk 0:00:25]} 26... Rc5 {[%clk 0:00:27.9]} 27. Rah1 {[%clk 0:00:21.2]}
27... h5 {[%clk 0:00:24.9]} 28. Rg3 {[%clk 0:00:20]} 28... Kg7 {[%clk
0:00:21.3]} 29. Qb7 {[%clk 0:00:17.6]} 29... Rf5 {[%clk 0:00:17.7]} 30. Qe7
{[%clk 0:00:16.4]} 30... Qf6 {[%clk 0:00:15.8]} 31. Qe4 {[%clk 0:00:15.6]} 31...
Rf4 {[%clk 0:00:15.1]} 32. Qe3 {[%clk 0:00:15]} 32... Rd8 {[%clk 0:00:12.9]} 33.
Rxh5 {[%clk 0:00:14.7]} 33... Rd7 {[%clk 0:00:08.6]} 34. Re5 {[%clk 0:00:13.2]}
34... Rd1 {[%clk 0:00:06.7]} 35. Rh5 {[%clk 0:00:10.6]} 1-0

[Event "*** Qualifier 3: Titled Tuesday 3|2 Blitz"]
[Site "Chess.com"]
[Date "2017.04.18"]
[Round "3"]
[White "Gabix_94"]
[Black "Infernal_XaM"]
[Result "1-0"]
[WhiteElo "2527"]
[BlackElo "2710"]
[TimeControl "180+2"]
[EndTime "13:40:05 PDT"]
[Termination "Gabix_94 won by resignation"]

1. e4 {[%clk 0:03:02]} 1... g6 {[%clk 0:03:00.4]} 2. d4 {[%clk 0:03:02.7]} 2...
Bg7 {[%clk 0:03:01.9]} 3. Nf3 {[%clk 0:03:03.6]} 3... d5 {[%clk 0:03:00.5]} 4.
exd5 {[%clk 0:03:04.3]} 4... Qxd5 {[%clk 0:03:00.8]} 5. Nc3 {[%clk 0:03:05.3]}
5... Qd6 {[%clk 0:03:02]} 6. h3 {[%clk 0:03:00.8]} 6... a6 {[%clk 0:03:02]} 7.
g3 {[%clk 0:03:00.7]} 7... Nf6 {[%clk 0:03:02]} 8. Bg2 {[%clk 0:03:00.4]} 8...
O-O {[%clk 0:03:02.9]} 9. O-O {[%clk 0:03:00.5]} 9... c5 {[%clk 0:03:03.8]} 10.
Bf4 {[%clk 0:03:00.8]} 10... Qb6 {[%clk 0:02:33.5]} 11. Na4 {[%clk 0:02:57.8]}
11... Qb5 {[%clk 0:02:34.7]} 12. b3 {[%clk 0:02:52]} 12... cxd4 {[%clk 0:02:32]}
13. Nxd4 {[%clk 0:02:52]} 13... Qa5 {[%clk 0:02:32.7]} 14. Qe1 {[%clk
0:02:42.1]} 14... Qd8 {[%clk 0:02:20.9]} 15. Rd1 {[%clk 0:02:40.9]} 15... Nbd7
{[%clk 0:02:22]} 16. Qb4 {[%clk 0:02:26.4]} 16... e5 {[%clk 0:02:12.8]} 17. Nf5
{[%clk 0:01:57.4]} 17... gxf5 {[%clk 0:01:50.3]} 18. Bxe5 {[%clk 0:01:57.1]}
18... a5 {[%clk 0:01:50.8]} 19. Qb5 {[%clk 0:01:49.7]} 19... Qe7 {[%clk
0:01:40.5]} 20. Bf4 {[%clk 0:01:46.6]} 20... Qb4 {[%clk 0:01:31.8]} 21. Qxf5
{[%clk 0:01:44.9]} 21... Nb6 {[%clk 0:01:28.2]} 22. Qg5 {[%clk 0:01:44]} 22...
Nxa4 {[%clk 0:01:25.6]} 23. Bd6 {[%clk 0:01:43.8]} 23... h6 {[%clk 0:01:13.4]}
24. Qc1 {[%clk 0:01:37.3]} 24... Nc5 {[%clk 0:00:56.9]} 25. Qe3 {[%clk
0:01:37.2]} 25... Re8 {[%clk 0:00:49.7]} 26. Qxc5 {[%clk 0:01:31.6]} 26... Qxc5
{[%clk 0:00:50.7]} 27. Bxc5 {[%clk 0:01:33.5]} 27... Ra6 {[%clk 0:00:51.6]} 28.
c4 {[%clk 0:01:31.9]} 28... a4 {[%clk 0:00:51.3]} 29. b4 {[%clk 0:01:32.5]}
29... Rae6 {[%clk 0:00:51.4]} 30. Rd2 {[%clk 0:01:30.2]} 30... Re2 {[%clk
0:00:51]} 31. Rfd1 {[%clk 0:01:31.1]} 31... Rxd2 {[%clk 0:00:51.5]} 32. Rxd2
{[%clk 0:01:33]} 32... Be6 {[%clk 0:00:50.3]} 33. Bxb7 {[%clk 0:01:32.7]} 33...
Bxc4 {[%clk 0:00:50.9]} 34. Bc6 {[%clk 0:01:33.9]} 34... Re1+ {[%clk 0:00:50.7]}
35. Kh2 {[%clk 0:01:35.3]} 35... Ne4 {[%clk 0:00:43.8]} 36. Rd8+ {[%clk
0:01:35]} 36... Kh7 {[%clk 0:00:45.1]} 37. Be3 {[%clk 0:01:31.5]} 37... f5
{[%clk 0:00:35.8]} 38. b5 {[%clk 0:01:30.6]} 38... Bxa2 {[%clk 0:00:31.1]} 39.
b6 {[%clk 0:01:30.1]} 39... Rb1 {[%clk 0:00:30.3]} 40. b7 {[%clk 0:01:29.8]}
40... Be5 {[%clk 0:00:26.1]} 41. Bf4 {[%clk 0:01:17.6]} 41... Bxf4 {[%clk
0:00:14.9]} 42. gxf4 {[%clk 0:01:19.5]} 42... a3 {[%clk 0:00:14.4]} 43. b8=Q
{[%clk 0:01:20.4]} 43... Rxb8 {[%clk 0:00:14.4]} 44. Rxb8 {[%clk 0:01:22.3]}
44... Be6 {[%clk 0:00:14.2]} 45. Ra8 {[%clk 0:01:23.1]} 45... a2 {[%clk
0:00:15.4]} 46. Bxe4 {[%clk 0:01:22.3]} 46... fxe4 {[%clk 0:00:16.6]} 47. f5
{[%clk 0:01:23.7]} 47... Bf7 {[%clk 0:00:17.1]} 48. Kg3 {[%clk 0:01:24]} 48...
Kg7 {[%clk 0:00:18.2]} 49. Kf4 {[%clk 0:01:25.3]} 49... Bd5 {[%clk 0:00:19.4]}
50. Ra6 {[%clk 0:01:25.6]} 50... Kf7 {[%clk 0:00:20.4]} 51. Ke5 {[%clk
0:01:25.6]} 51... Bb3 {[%clk 0:00:21.7]} 52. Ra7+ {[%clk 0:01:25.8]} 52... Kf8
{[%clk 0:00:22.6]} 53. Kxe4 {[%clk 0:01:26.8]} 53... h5 {[%clk 0:00:23.4]} 54.
h4 {[%clk 0:01:27]} 54... Ke8 {[%clk 0:00:24.4]} 55. Ke5 {[%clk 0:01:28.3]}
55... Kf8 {[%clk 0:00:25.4]} 56. Kf6 {[%clk 0:01:28.8]} 56... Ke8 {[%clk
0:00:26.6]} 57. Ra3 {[%clk 0:01:23.4]} 57... Bc4 {[%clk 0:00:27.3]} 58. f4
{[%clk 0:01:19.3]} 58... Kd7 {[%clk 0:00:28.1]} 59. Kg7 {[%clk 0:01:19.1]} 59...
Kd6 {[%clk 0:00:25.9]} 60. f6 {[%clk 0:01:19.9]} 1-0

[Event "*** Qualifier 3: Titled Tuesday 3|2 Blitz"]
[Site "Chess.com"]
[Date "2017.04.18"]
[Round "3"]
[White "Sebastian"]
[Black "Konavets"]
[Result "1-0"]
[WhiteElo "2656"]
[BlackElo "2603"]
[TimeControl "180+2"]
[EndTime "13:40:07 PDT"]
[Termination "Sebastian won by resignation"]

1. e4 {[%clk 0:03:02]} 1... e5 {[%clk 0:02:57.8]} 2. Nf3 {[%clk 0:03:02.7]} 2...
Nc6 {[%clk 0:02:59]} 3. Bb5 {[%clk 0:03:03.9]} 3... a6 {[%clk 0:02:57.6]} 4. Ba4
{[%clk 0:03:05]} 4... Nf6 {[%clk 0:02:58.7]} 5. O-O {[%clk 0:03:06.3]} 5... d6
{[%clk 0:02:57.1]} 6. Bxc6+ {[%clk 0:03:02.6]} 6... bxc6 {[%clk 0:02:57.7]} 7.
d4 {[%clk 0:03:04.5]} 7... Be7 {[%clk 0:02:58.2]} 8. Nc3 {[%clk 0:02:59.5]} 8...
exd4 {[%clk 0:02:56.8]} 9. Nxd4 {[%clk 0:02:59.6]} 9... Bd7 {[%clk 0:02:55.2]}
10. Re1 {[%clk 0:03:00.3]} 10... O-O {[%clk 0:02:55.8]} 11. h3 {[%clk
0:03:00.9]} 11... c5 {[%clk 0:02:51.1]} 12. Nb3 {[%clk 0:02:51.9]} 12... Re8
{[%clk 0:02:48]} 13. Bf4 {[%clk 0:02:50]} 13... Bf8 {[%clk 0:02:42.8]} 14. Qf3
{[%clk 0:02:42.1]} 14... Rb8 {[%clk 0:02:39]} 15. e5 {[%clk 0:02:29.3]} 15...
dxe5 {[%clk 0:02:39]} 16. Bxe5 {[%clk 0:02:31.2]} 16... c4 {[%clk 0:02:31]} 17.
Na5 {[%clk 0:02:28.4]} 17... Rxb2 {[%clk 0:01:02.6]} 18. Nd5 {[%clk 0:02:17.3]}
18... Nxd5 {[%clk 0:00:21.7]} 19. Bxb2 {[%clk 0:02:16.6]} 19... Rxe1+ {[%clk
0:00:22.9]} 20. Rxe1 {[%clk 0:02:17.6]} 20... Bb4 {[%clk 0:00:24.8]} 21. Rd1
{[%clk 0:02:18.7]} 21... c3 {[%clk 0:00:23.8]} 22. Bc1 {[%clk 0:02:19]} 22... c6
{[%clk 0:00:23.6]} 23. Nc4 {[%clk 0:02:15.5]} 23... Be6 {[%clk 0:00:23.6]} 24.
a3 {[%clk 0:02:14.1]} 24... Bc5 {[%clk 0:00:20.6]} 25. Be3 {[%clk 0:02:11.5]}
25... Bf8 {[%clk 0:00:19.6]} 26. Bd4 {[%clk 0:02:06.1]} 26... Qh4 {[%clk
0:00:19.5]} 27. Ne3 {[%clk 0:02:01.4]} 27... Bxa3 {[%clk 0:00:18]} 28. Nxd5
{[%clk 0:01:51.7]} 28... Bxd5 {[%clk 0:00:19]} 29. Qxc3 {[%clk 0:01:53.3]} 29...
Bf8 {[%clk 0:00:18.9]} 30. Re1 {[%clk 0:01:48.6]} 30... Qg5 {[%clk 0:00:15.3]}
31. f3 {[%clk 0:01:46.7]} 31... Be6 {[%clk 0:00:16.7]} 32. Qe3 {[%clk 0:01:47]}
32... Qd5 {[%clk 0:00:16]} 33. Rb1 {[%clk 0:01:43.2]} 33... Qd6 {[%clk
0:00:12.5]} 34. Kh1 {[%clk 0:01:40.2]} 34... h6 {[%clk 0:00:13.9]} 35. Be5
{[%clk 0:01:40.8]} 35... Qc5 {[%clk 0:00:13.2]} 36. Qxc5 {[%clk 0:01:40.7]}
36... Bxc5 {[%clk 0:00:15.1]} 37. Rb8+ {[%clk 0:01:40.9]} 37... Kh7 {[%clk
0:00:15.1]} 38. Ra8 {[%clk 0:01:42.8]} 38... Bc4 {[%clk 0:00:16.3]} 39. Rc8
{[%clk 0:01:38.6]} 39... Bb5 {[%clk 0:00:16.3]} 40. c4 {[%clk 0:01:39.7]} 40...
Ba4 {[%clk 0:00:13.8]} 41. Ra8 {[%clk 0:01:41.4]} 41... f6 {[%clk 0:00:11.2]}
42. Bc7 {[%clk 0:01:42.4]} 42... Bb3 {[%clk 0:00:08.7]} 43. Rxa6 {[%clk
0:01:43.4]} 43... Kg6 {[%clk 0:00:09.9]} 44. Rxc6 {[%clk 0:01:43.9]} 44... Bd4
{[%clk 0:00:08.8]} 45. Bg3 {[%clk 0:01:38.5]} 45... h5 {[%clk 0:00:09.4]} 46. h4
{[%clk 0:01:39.7]} 46... Kf5 {[%clk 0:00:08.3]} 47. c5 {[%clk 0:01:40.7]} 47...
g5 {[%clk 0:00:09.4]} 48. Rb6 {[%clk 0:01:34.5]} 48... Bd5 {[%clk 0:00:05.1]}
49. Rb4 {[%clk 0:01:31.6]} 49... Bc3 {[%clk 0:00:06.4]} 50. Rb6 {[%clk
0:01:29.7]} 50... g4 {[%clk 0:00:04.6]} 51. c6 {[%clk 0:01:27.9]} 51... gxf3
{[%clk 0:00:05.5]} 52. gxf3 {[%clk 0:01:29.3]} 52... Bxf3+ {[%clk 0:00:07.1]}
53. Kh2 {[%clk 0:01:30.8]} 53... Bd4 {[%clk 0:00:04.7]} 54. c7 {[%clk
0:01:31.6]} 54... Bxb6 {[%clk 0:00:04]} 55. c8=Q+ {[%clk 0:01:32.8]} 55... Kg6
{[%clk 0:00:04.9]} 56. Qc2+ {[%clk 0:01:30.2]} 56... Kg7 {[%clk 0:00:05.3]} 57.
Qb3 {[%clk 0:01:30.6]} 1-0